bitfinex-derivatives/quotes_SOLF0:USTF0_20241017
["timestamp","ask_amount","ask_price","bid_price","bid_amount"]
[1729149566677,8.4942,151.82,151.75,15.5854]
[1729149566985,5.2,151.82,151.75,15.5854]
[1729149567182,8.4943,151.82,151.77,3.2951]
[1729149567483,5.2,151.83,151.75,15.5854]
[1729149567678,3.2942,151.82,151.77,3.2952]
[1729149567876,5.2,151.83,151.75,15.5854]
[1729149568281,5.2,151.83,151.77,3.2952]
[1729149568879,3.2943,151.82,151.77,3.2952]
[1729149569884,3.2943,151.82,151.75,14.23]
[1729149570082,3.2943,151.82,151.78,3.295]
[1729149570283,5.2,151.83,151.75,14.23]
[1729149571182,5.2,151.83,151.78,3.2949]
[1729149571386,8.4941,151.83,151.78,3.2949]
[1729149571785,3.2943,151.82,151.77,3.2951]
[1729149572183,5.2,151.83,151.74,17.56158857]
[1729149572395,19.43,151.83,151.74,17.56158857]
[1729149572582,3.2948,151.79,151.75,3.2956]
[1729149572882,3.2948,151.79,151.68,14.23]
[1729149572883,5.2,151.78,151.68,14.23]
[1729149573084,14.23,151.77,151.69,2.7237]
[1729149573284,17.5253,151.77,151.73,3.296]
[1729149573485,17.5253,151.77,151.69,2.7237]
[1729149573782,17.5253,151.77,151.72,3.2962]
[1729149574182,8.4952,151.78,151.73,3.2959]
[1729149574382,5.2,151.78,151.73,3.2959]
[1729149574590,5.2,151.78,151.69,5.98674045]
[1729149575583,3.2956,151.76,151.72,3.2962]
[1729149575788,14.23,151.79,151.69,5.98674045]
[1729149576083,5.54,151.78,151.72,3.2961]
[1729149576481,3.2957,151.75,151.72,3.2963]
[1729149576686,5.54,151.78,151.69,5.98674045]
[1729149576886,5.54,151.77,151.69,5.98674045]
[1729149577287,3.2956,151.76,151.71,3.2964]
[1729149577488,5.54,151.77,151.69,5.98674045]
[1729149577690,8.8354,151.77,151.71,3.2964]
[1729149577885,8.8354,151.77,151.69,5.98674045]
[1729149578493,3.2957,151.75,151.71,3.2964]
[1729149578787,14.23,151.79,151.69,5.98674045]
[1729149579088,5.54,151.78,151.69,5.98674045]
[1729149579590,5.54,151.79,151.71,14.23]
[1729149580491,8.8348,151.79,151.75,3.2955]
[1729149580987,3.2948,151.79,151.75,3.2955]
[1729149581192,5.54,151.8,151.76,3.2953]
[1729149581193,3.2946,151.8,151.76,3.2953]
[1729149581494,19.77,151.81,151.73,14.23]
[1729149581790,3.2945,151.81,151.73,14.23]
[1729149582383,3.295,151.78,151.69,5.98674045]
[1729149582588,3.295,151.78,151.7,19.77]
[1729149582987,3.295,151.78,151.74,3.2957]
[1729149583591,8.8349,151.79,151.75,3.2955]
[1729149584188,5.54,151.79,151.76,3.2954]
[1729149584388,5.54,151.79,151.77,3.27258478]
[1729149586395,3.2951,151.78,151.75,3.2955]
[1729149586599,5.54,151.79,151.7,19.77]
[1729149586894,8.8348,151.79,151.75,3.2955]
[1729149587391,3.2948,151.79,151.75,3.2955]
[1729149587690,5.54,151.8,151.7,19.77]
[1729149588088,8.8346,151.8,151.77,3.2952]
[1729149588290,5.54,151.83,151.77,3.22479298]
[1729149588592,5.54,151.83,151.75,4.2152]
[1729149588897,3.294,151.83,151.79,3.2947]
[1729149589099,3.294,151.83,151.8,3.26500402]
[1729149589296,19.77,151.84,151.8,3.26500402]
[1729149589494,3.2943,151.82,151.78,3.295]
[1729149589693,3.2943,151.82,151.79,3.35893962]
[1729149591900,3.2943,151.82,151.79,3.2948]
[1729149592199,3.2943,151.82,151.79,6.6725181]
[1729149592501,3.2943,151.82,151.79,3.2948]
[1729149593000,3.2943,151.82,151.79,6.63791709]
[1729149599599,5.54,151.83,151.79,6.63791709]
[1729149599798,9.11,151.81,151.79,6.63791709]
[1729149600494,6.5857,151.89,151.79,6.63791709]
[1729149600495,3.2936,151.85,151.82,3.294]
[1729149600801,81.0769187,151.94,151.82,12.46157627]
[1729149600802,14.65,151.87,151.82,12.46157627]
[1729149600996,9.11,151.84,151.82,3.2941]
[1729149601195,9.11,151.83,151.78,5.54]
[1729149601399,9.11,151.8,151.75,18.8652]
[1729149601607,9.11,151.8,151.78,3.295]
[1729149601802,9.11,151.8,151.79,3.3057681]
[1729149602808,3.295,151.78,151.75,7.5107]
[1729149603005,5.54,151.84,151.76,9.11]
[1729149603210,6.5849,151.9,151.76,9.11]
[1729149603512,9.11,151.84,151.78,9.11]
[1729149603717,9.11,151.84,151.78,12.47102645]
[1729149603911,3.294,151.83,151.8,3.2945]
[1729149604209,9.11,151.82,151.8,3.2945]
[1729149604902,3.294,151.83,151.8,3.2945]
[1729149605108,12.4042,151.82,151.79,3.2947]
[1729149605312,5.54,151.85,151.77,9.11]
[1729149605605,9.11,151.83,151.81,3.2942]
[1729149606410,9.11,151.83,151.82,3.30006068]
[1729149606602,12.4039,151.83,151.82,3.30006068]
[1729149606806,12.4039,151.83,151.77,9.11]
[1729149607009,12.4039,151.83,151.77,12.4709119]
[1729149607010,9.11,151.82,151.77,12.4709119]
[1729149607206,9.11,151.82,151.8,3.2945]
[1729149607609,9.11,151.83,151.78,9.11]
[1729149608416,9.11,151.83,151.8,3.2944]
[1729149609615,9.11,151.83,151.78,12.33778037]
[1729149609808,12.4042,151.82,151.78,3.22778037]
[1729149610110,9.11,151.81,151.76,9.11]
[1729149610315,9.11,151.81,151.75,11.8922]
[1729149610511,9.11,151.79,151.75,11.8922]
[1729149610710,3.2952,151.78,151.75,6.0778]
[1729149610906,9.11,151.77,151.75,1.3493]
[1729149611409,9.11,151.76,151.7,1.3575]
[1729149611614,9.11,151.76,151.7,17.17]
[1729149611813,9.11,151.76,151.73,3.2959]
[1729149612211,9.11,151.76,151.71,9.11]
[1729149612419,12.4055,151.76,151.72,3.2962]
[1729149612819,9.11,151.75,151.7,2.7]
[1729149613321,9.11,151.75,151.71,9.11]
[1729149613526,12.4057,151.75,151.71,12.4065]
[1729149613821,9.11,151.75,151.71,3.2965]
[1729149614317,9.11,151.73,151.71,3.2965]
[1729149615218,9.11,151.73,151.69,3.26304045]
[1729149615422,12.4062,151.73,151.69,3.2969]
[1729149615618,9.11,151.72,151.69,3.3657597]
[1729149615824,9.11,151.72,151.66,9.11]
[1729149616019,12.4065,151.72,151.68,3.297]
[1729149616822,12.4065,151.72,151.69,3.2969]
[1729149617221,9.11,151.72,151.69,6.54791272]
[1729149619229,3.2965,151.71,151.69,3.25101272]
[1729149619530,9.11,151.71,151.63,4.1393]
[1729149619722,9.11,151.71,151.66,9.11]
[1729149619922,5.36,151.74,151.67,9.11]
[1729149620321,9.11,151.68,151.58,3.3391641]
[1729149620621,14.49,151.67,151.61,9.11]
[1729149620825,5.38,151.66,151.61,12.36782255]
[1729149621219,5.38,151.66,151.63,9.11]
[1729149621817,12.4078,151.66,151.64,3.32278773]
[1729149622123,9.11,151.69,151.64,9.11]
[1729149622426,8.6768,151.7,151.67,9.11]
[1729149622627,3.2968,151.7,151.67,9.11]
[1729149622828,9.11,151.7,151.62,5.38]
[1729149623029,5.38,151.7,151.66,9.11]
[1729149623231,5.38,151.7,151.66,12.3330792]
[1729149623530,9.11,151.71,151.66,12.3330792]
[1729149623728,14.49,151.71,151.66,12.3330792]
[1729149623929,3.2969,151.7,151.66,15.6306792]
[1729149624628,12.4069,151.7,151.66,6.5206792]
[1729149627133,1.4369,151.73,151.66,12.3330792]
[1729149627327,3.2965,151.72,151.68,9.11]
[1729149627526,8.6765,151.72,151.68,9.11]
[1729149627728,8.6765,151.72,151.68,12.38122916]
[1729149627729,5.38,151.72,151.68,12.38122916]
[1729149627925,5.38,151.72,151.69,3.2969]
[1729149628141,5.38,151.72,151.68,12.38122916]
[1729149628635,8.6764,151.72,151.68,15.67832916]
[1729149628830,8.6764,151.72,151.68,12.38122916]
[1729149629028,5.38,151.75,151.7,9.11]
[1729149629229,14.49,151.75,151.7,9.11]
[1729149629430,9.11,151.74,151.71,3.23717628]
[1729149629736,9.11,151.74,151.71,3.34730226]
[1729149629937,3.2963,151.73,151.69,12.407]
[1729149630535,5.38,151.75,151.7,9.11]
[1729149630740,5.38,151.77,151.71,9.11]
[1729149631037,5.38,151.78,151.74,9.11]
[1729149631229,17.7849,151.79,151.75,3.2955]
[1729149631430,9.11,151.76,151.56,71.22]
[1729149631631,9.11,151.76,151.73,3.2959]
[1729149631632,14.49,151.76,151.73,3.2959]
[1729149631837,5.38,151.76,151.73,12.4059]
[1729149632036,5.38,151.76,151.73,3.28366658]
[1729149632037,9.11,151.75,151.73,3.28366658]
[1729149632238,9.11,151.74,151.69,9.11]
[1729149632440,9.11,151.74,151.7,3.3426862]
[1729149632740,3.2961,151.73,151.7,3.3426862]
[1729149633039,9.11,151.72,151.67,9.11]
[1729149633336,3.2966,151.71,151.67,3.2974]
[1729149633730,3.2966,151.71,151.67,6.59941839]
[1729149633932,3.2966,151.71,151.67,3.2974]
[1729149634441,3.2966,151.71,151.67,6.51501333]
[1729149634636,3.2963,151.73,151.69,3.2969]
[1729149634841,5.38,151.75,151.72,9.11]
[1729149635039,1.3441,151.82,151.74,9.11]
[1729149635335,3.2949,151.79,151.76,9.11]
[1729149635736,3.2946,151.8,151.77,3.2952]
[1729149635935,5.62,151.81,151.76,9.11]
[1729149636438,2.5204,151.88,151.78,9.11]
[1729149636439,9.11,151.83,151.78,9.11]
[1729149636642,9.11,151.83,151.79,3.23587687]
[1729149636846,3.2942,151.82,151.79,3.23587687]
[1729149637035,9.11,151.83,151.79,3.23587687]
[1729149637238,5.62,151.86,151.79,9.11]
[1729149637434,3.2937,151.84,151.8,3.2945]
[1729149638241,19.74,151.99,151.81,14.23]
[1729149638541,1.3482,151.95,151.86,14.23]
[1729149638732,3.2914,151.95,151.9,3.2924]
[1729149638934,5.62,151.97,151.89,14.23]
[1729149639140,5.62,151.97,151.9,2.7063]
[1729149639340,14.23,151.99,151.91,5.62]
[1729149639542,14.23,152.01,151.91,19.85]
[1729149639743,19.85,152.01,151.91,19.85]
[1729149639938,3.291,151.97,151.9,4.1761]
[1729149640138,14.23,151.99,151.9,9.7961]
[1729149640338,14.23,151.97,151.9,9.7961]
[1729149640539,3.2915,151.95,151.9,9.7961]
[1729149640740,14.23,151.97,151.9,9.7961]
[1729149641040,17.5209,151.97,151.91,3.2922]
[1729149641238,14.23,151.97,151.9,9.7961]
[1729149641643,14.23,151.97,151.9,13.0885]
[1729149642049,14.23,151.97,151.9,9.7961]
[1729149642341,14.23,151.97,151.8,14.23]
[1729149642342,14.23,151.95,151.85,14.23]
[1729149642543,19.85,151.94,151.85,5.62]
[1729149642843,19.85,151.94,151.83,14.23]
[1729149643044,14.23,151.89,151.81,9.7539]
[1729149643245,14.23,151.89,151.82,3.294]
[1729149643542,14.23,151.89,151.81,9.7539]
[1729149644049,14.23,151.89,151.81,23.9839]
[1729149644539,3.2929,151.88,151.82,3.2941]
[1729149644937,14.23,151.89,151.81,23.9839]
[1729149645137,17.5227,151.89,151.84,3.2937]
[1729149645544,14.23,151.89,151.81,23.9839]
[1729149645738,14.23,151.89,151.81,9.7539]
[1729149646351,3.2932,151.87,151.82,3.294]
[1729149646646,14.23,151.89,151.81,9.7539]
[1729149647438,3.2929,151.88,151.83,3.2938]
[1729149647642,14.23,151.89,151.81,4.1339]
[1729149647845,14.23,151.89,151.81,9.7539]
[1729149648046,3.2931,151.87,151.81,9.7539]
[1729149648246,14.23,151.89,151.81,23.9839]
[1729149649251,3.293,151.88,151.83,3.2937]
[1729149649657,5.62,151.9,151.83,14.23]
[1729149649955,5.62,151.9,151.81,9.7539]
[1729149649956,5.62,151.94,151.85,14.23]
[1729149650150,5.62,151.94,151.85,19.85]
[1729149650358,14.23,151.93,151.85,5.62]
[1729149650947,14.23,151.93,151.85,8.9133]
[1729149651152,14.23,151.93,151.85,5.62]
[1729149651655,3.2926,151.9,151.86,3.2933]
[1729149652155,14.23,151.93,151.85,5.62]
[1729149652358,14.23,151.93,151.81,4.1339]
[1729149652359,14.23,151.91,151.81,23.9839]
[1729149652547,5.62,151.9,151.81,23.9839]
[1729149652952,3.2931,151.88,151.81,23.9839]
[1729149653356,3.2931,151.88,151.83,3.2938]
[1729149654556,3.2931,151.88,151.84,3.2937]
[1729149655057,5.62,151.9,151.84,3.2937]
[1729149656252,3.2929,151.88,151.84,3.2937]
[1729149656458,3.2929,151.88,151.83,14.23]
[1729149656459,5.62,151.9,151.85,3.2935]
[1729149657661,3.2927,151.89,151.85,3.2935]
[1729149659267,5.62,151.9,151.84,3.2937]
[1729149659856,3.2929,151.88,151.83,3.2938]
[1729149660062,3.2929,151.88,151.81,23.9839]
[1729149660463,3.2929,151.88,151.84,3.2936]
[1729149661167,3.2923,151.91,151.85,14.23]
[1729149661465,5.62,151.93,151.85,14.23]
[1729149661865,3.2926,151.9,151.86,3.2932]
[1729149662062,5.62,151.93,151.85,14.23]
[1729149662561,5.62,151.93,151.85,17.5234]
[1729149662965,3.2928,151.89,151.85,17.5234]
[1729149663868,3.2929,151.88,151.85,3.2934]
[1729149664263,14.23,151.91,151.83,3.2938]
[1729149664462,14.23,151.91,151.82,5.62]
[1729149664662,14.23,151.91,151.83,3.2938]
[1729149664860,3.2932,151.87,151.83,3.2938]
[1729149666362,3.2932,151.87,151.82,5.62]
[1729149666363,3.2929,151.88,151.85,3.2935]
[1729149666667,14.23,151.91,151.85,3.2935]
[1729149666856,3.2924,151.9,151.86,3.2931]
[1729149667256,3.2924,151.9,151.83,14.23]
[1729149668162,3.2924,151.9,151.86,3.2931]
[1729149668568,3.2927,151.89,151.86,3.2931]
[1729149669665,3.2931,151.87,151.84,3.2936]
[1729149669865,5.62,151.93,151.83,14.23]
[1729149670460,3.293,151.88,151.85,3.2935]
[1729149670869,5.62,151.93,151.83,14.23]
[1729149671163,5.62,151.93,151.84,14.23]
[1729149671364,3.2927,151.89,151.86,3.2932]
[1729149671568,5.62,151.93,151.84,14.23]
[1729149671764,3.2923,151.91,151.88,3.2928]
[1729149671962,5.62,151.93,151.88,6.62559234]
[1729149672164,14.23,151.96,151.86,14.23]
[1729149672368,5.64,151.96,151.91,14.23]
[1729149672665,5.64,151.96,151.91,17.51404708]
[1729149672965,14.23,152.0,151.91,17.51404708]
[1729149673173,5.64,151.99,151.91,17.51404708]
[1729149673367,5.64,151.99,151.93,14.23]
[1729149673567,3.291,151.97,151.94,3.2914]
[1729149673769,2.5005,152.01,151.94,3.21323472]
[1729149673974,5.64,152.0,151.93,14.23]
[1729149674168,3.2906,151.99,151.95,3.2912]
[1729149674372,5.64,152.0,151.95,3.2912]
[1729149675376,3.2907,151.98,151.95,3.2912]
[1729149675971,5.64,152.0,151.93,20.85867402]
[1729149676369,3.291,151.97,151.93,20.85867402]
[1729149676573,19.87,152.0,151.93,3.33707402]
[1729149676870,19.87,152.0,151.91,14.23]
[1729149677373,14.23,151.98,151.92,3.37109077]
[1729149677573,14.23,151.94,151.88,1.4313]
[1729149677970,5.64,151.95,151.88,1.4313]
[1729149678374,3.2918,151.93,151.9,3.2924]
[1729149678575,5.64,151.95,151.9,3.2924]
[1729149678778,5.64,151.95,151.9,3.34794014]
[1729149678983,5.64,151.95,151.89,14.23]
[1729149679176,15.3656,151.99,151.89,17.44984447]
[1729149679377,5.64,151.97,151.89,17.44984447]
[1729149679678,3.2914,151.95,151.92,3.2919]
[1729149680882,3.2914,151.95,151.91,3.2921]
[1729149681378,3.2913,151.96,151.91,17.522]
[1729149681778,5.64,151.98,151.91,17.522]
[1729149681979,19.87,151.98,151.91,3.292]
[1729149683288,3.2913,151.96,151.89,17.44984447]
[1729149683474,19.87,151.98,151.89,17.44984447]
[1729149683787,3.2915,151.95,151.91,3.292]
[1729149684890,19.87,151.98,151.89,17.44984447]
[1729149685184,1.3637,152.01,151.93,14.23]
[1729149685377,5.64,152.0,151.93,14.23]
[1729149685581,5.64,152.0,151.93,17.5127499]
[1729149686482,3.2906,151.99,151.95,3.2912]
[1729149686887,3.2904,152.0,151.96,3.291]
[1729149687182,3.2904,152.0,151.95,14.23]
[1729149687781,3.2904,152.0,151.96,3.291]
[1729149688196,3.2904,152.0,151.95,15.6426]
[1729149688687,1.4314,152.05,151.97,14.23]
[1729149688881,5.64,152.04,151.97,14.23]
[1729149689078,5.64,152.04,151.95,1.4126]
[1729149689079,14.23,152.08,151.99,14.23]
[1729149689382,5.64,152.06,152.01,3.2899]
[1729149689586,5.64,152.06,151.99,14.23]
[1729149690190,19.87,152.06,151.95,15.6426]
[1729149691090,15.5681,152.1,151.99,14.23]
[1729149691394,3.2891,152.06,152.02,3.2898]
[1729149691594,3.2891,152.06,152.03,3.32489819]
[1729149692394,3.2892,152.05,152.03,3.32489819]
[1729149693595,5.64,152.08,152.03,3.32489819]
[1729149693794,3.2894,152.04,152.01,3.2899]
[1729149693985,3.2894,152.04,152.01,6.60152416]
[1729149694185,3.2894,152.04,152.01,3.2899]
[1729149694592,3.2894,152.04,152.01,6.5603921]
[1729149694786,19.87,152.08,152.01,3.2704921]
[1729149694991,3.2898,152.02,151.98,19.87]
[1729149695190,19.87,152.08,151.98,19.87]
[1729149695597,3.2896,152.03,152.0,3.2901]
[1729149695900,19.87,152.03,151.89,6.5851]
[1729149696095,3.2905,151.99,151.95,3.2913]
[1729149696593,19.87,152.03,151.92,17.46429589]
[1729149696902,19.87,152.03,151.94,3.2915]
[1729149697302,3.2908,151.98,151.94,3.2915]
[1729149697803,3.2908,151.98,151.92,17.46429589]
[1729149698596,5.42,151.99,151.94,3.2914]
[1729149698798,5.42,151.99,151.92,17.46429589]
[1729149698994,5.42,151.99,151.92,3.23429589]
[1729149699198,5.42,151.99,151.9,21.6496]
[1729149699602,5.42,151.99,151.9,21.70239233]
[1729149699805,5.42,151.99,151.92,3.292]
[1729149700006,19.65,151.99,151.9,21.70239233]
[1729149700303,19.65,151.99,151.9,24.99459233]
[1729149700504,19.65,151.99,151.9,21.70239233]
[1729149701002,19.65,151.99,151.91,3.2921]
[1729149701201,3.2915,151.95,151.91,3.2921]
[1729149701407,19.65,151.99,151.9,21.70239233]
[1729149701994,3.2917,151.94,151.9,24.99469233]
[1729149702203,19.65,151.99,151.9,21.70239233]
[1729149702693,3.2913,151.96,151.92,3.2919]
[1729149702895,19.65,151.99,151.9,21.70239233]
[1729149703300,3.2911,151.96,151.9,21.70239233]
[1729149703504,19.65,151.99,151.9,21.70239233]
[1729149704402,3.2914,151.95,151.92,3.2919]
[1729149706003,3.2909,151.97,151.94,3.2914]
[1729149706203,5.42,152.0,151.94,14.23]
[1729149706609,3.2906,151.99,151.95,3.2912]
[1729149706807,5.42,152.0,151.95,3.2912]
[1729149707405,5.42,152.0,151.96,3.2911]
[1729149708306,8.7103,152.0,151.97,3.2907]
[1729149708517,5.42,152.05,151.99,14.23]
[1729149708706,5.42,152.05,151.99,17.51374662]
[1729149708906,5.42,152.05,152.0,3.2901]
[1729149709205,5.42,152.05,151.99,3.28374662]
[1729149709411,5.42,152.05,151.98,1.4687]
[1729149709820,5.42,152.05,151.98,4.77911163]
[1729149710010,3.2896,152.03,151.98,4.7593]
[1729149710218,5.42,152.05,151.98,1.4687]
[1729149710514,5.42,152.05,151.98,4.68729568]
[1729149710812,3.2902,152.01,151.98,4.7594]
[1729149711015,3.2902,152.01,151.98,8.084624]
[1729149712608,5.42,152.05,151.98,4.793924]
[1729149713313,5.42,152.05,151.98,8.084624]
[1729149714115,5.42,152.05,151.99,3.2903]
[1729149714710,3.2898,152.02,151.99,3.2903]
[1729149714917,3.2898,152.02,151.98,4.793924]
[1729149715214,3.2898,152.03,152.0,3.2902]
[1729149716814,5.42,152.05,151.98,4.793924]
[1729149717016,5.42,152.05,152.02,3.2898]
[1729149717612,15.5559,152.1,152.03,3.2895]
[1729149717813,5.42,152.09,152.03,3.2895]
[1729149718017,3.2891,152.06,152.03,3.2895]
[1729149718217,5.42,152.09,152.03,3.2895]
[1729149719811,3.2891,152.06,152.03,3.2895]
[1729149720118,3.2891,152.06,152.04,3.2894]
[1729149720325,3.2888,152.07,152.04,3.2894]
[1729149720618,5.42,152.08,152.03,3.2895]
[1729149721012,5.42,152.08,152.01,14.23]
[1729149721215,19.65,152.08,152.0,3.2902]
[1729149722016,14.23,152.06,151.98,8.084424]
[1729149722517,3.2903,152.0,151.98,4.793924]
[1729149722709,5.42,152.03,151.98,3.325224]
[1729149722912,5.42,152.02,151.98,3.325224]
[1729149723318,3.2905,151.99,151.98,3.325224]
[1729149723624,5.42,152.02,151.94,14.23]
[1729149723825,3.2908,151.98,151.94,14.23]
[1729149724027,5.42,152.02,151.94,14.23]
[1729149724321,3.2904,152.0,151.97,3.2909]
[1729149724622,5.42,152.02,151.96,14.23]
[1729149724829,5.42,152.03,151.96,14.23]
[1729149725125,3.2902,152.01,151.98,3.2906]
[1729149725326,3.2902,152.01,151.98,6.65159483]
[1729149725521,5.42,152.03,151.98,17.59099483]
[1729149725821,8.7097,152.03,152.0,3.2902]
[1729149726532,5.42,152.03,151.98,17.59099483]
[1729149727217,5.42,152.03,151.98,20.52159483]
[1729149728025,8.7098,152.03,151.99,3.2904]
[1729149728526,5.42,152.03,151.98,20.52159483]
[1729149728726,3.2894,152.04,151.98,20.52159483]
[1729149728931,5.3,152.08,152.02,14.23]
[1729149729230,3.2891,152.06,152.03,3.2895]
[1729149731425,3.2895,152.04,152.01,14.23]
[1729149731625,5.3,152.08,152.01,14.23]
[1729149731831,19.53,152.08,151.99,14.23]
[1729149732032,3.2898,152.03,152.0,3.2901]
[1729149732329,19.53,152.08,151.99,14.23]
[1729149732730,3.2897,152.03,151.99,17.5203]
[1729149733335,3.2897,152.03,152.0,1.3464]
[1729149733521,5.3,152.08,152.0,15.5764]
[1729149734329,3.2893,152.05,152.02,3.2897]
[1729149734534,5.3,152.08,152.0,15.5764]
[1729149735534,3.2891,152.06,152.02,3.2897]
[1729149735736,3.2891,152.06,152.02,17.5197]
[1729149737729,5.3,152.08,152.02,17.5197]
[1729149738438,3.2893,152.05,152.02,17.5197]
[1729149738833,3.2891,152.06,152.03,3.2894]
[1729149739937,3.2896,152.04,152.01,3.2899]
[1729149740436,5.3,152.08,152.0,15.5764]
[1729149740632,3.2895,152.04,152.01,3.2898]
[1729149741735,3.2891,152.06,152.03,3.2896]
[1729149741927,3.2891,152.06,152.0,15.5764]
[1729149742134,5.3,152.08,152.0,15.5764]
[1729149742839,19.53,152.08,152.0,1.3464]
[1729149743036,14.23,152.06,152.0,1.3464]
[1729149744140,19.53,152.08,152.0,1.3464]
[1729149744539,3.289,152.06,152.03,3.2894]
[1729149745236,5.3,152.07,152.03,3.2894]
[1729149745634,71.1,152.11,152.03,14.23]
[1729149745834,3.2887,152.07,152.04,3.2892]
[1729149746236,5.3,152.1,152.04,3.2892]
[1729149746432,3.2889,152.07,152.04,3.2892]
[1729149746835,14.23,152.12,152.03,14.23]
[1729149747139,3.2881,152.1,152.07,3.2886]
[1729149747739,3.2881,152.1,152.07,6.59309654]
[1729149747947,3.2881,152.1,152.07,3.2886]
[1729149748342,3.2881,152.1,152.08,3.30153523]
[1729149748546,3.2881,152.1,152.06,3.2888]
[1729149748845,3.2881,152.1,152.05,14.23]
[1729149749045,3.2881,152.1,152.07,3.2887]
[1729149749245,3.2881,152.1,152.07,6.60186888]
[1729149751048,3.2883,152.09,152.07,6.60186888]
[1729149751244,5.3,152.12,152.08,3.2883]
[1729149751444,3.288,152.11,152.08,3.2883]
[1729149752046,5.3,152.12,152.08,6.53941049]
[1729149752242,3.2881,152.1,152.08,6.53941049]
[1729149753151,3.2881,152.1,152.08,3.25111049]
[1729149753350,3.2881,152.1,152.07,4.7128]
[1729149753940,3.2881,152.1,152.07,7.94516168]
[1729149754450,5.3,152.12,152.08,3.2884]
[1729149754845,15.5803,152.16,152.08,3.2884]
[1729149755048,71.08,152.19,152.1,3.2879]
[1729149755049,5.3,152.15,152.1,3.2879]
[1729149755247,5.3,152.14,152.1,3.2879]
[1729149755557,5.22,152.15,152.1,3.2879]
[1729149755750,3.2876,152.13,152.1,3.2881]
[1729149756160,5.22,152.15,152.08,14.23]
[1729149757256,3.2875,152.13,152.09,3.2881]
[1729149757561,5.22,152.15,152.07,4.65656168]
[1729149757753,3.2882,152.1,152.07,7.94516168]
[1729149758450,3.288,152.11,152.08,3.2884]
[1729149761660,3.288,152.11,152.07,7.94526168]
[1729149765264,5.22,152.15,152.07,4.65656168]
[1729149765960,14.23,152.14,152.07,3.23236168]
[1729149766164,15.5999,152.14,152.04,19.53]
[1729149766460,3.2883,152.09,152.06,3.2888]
[1729149766658,3.2883,152.09,152.06,6.63552251]
[1729149766863,3.2883,152.09,152.06,3.2888]
[1729149767454,3.2883,152.09,152.06,6.62006344]
[1729149767664,20.8029,152.18,152.0,4.1187]
[1729149767665,5.22,152.23,152.08,14.23]
[1729149767867,14.23,152.2,152.09,1.4391]
[1729149768061,14.23,152.2,152.09,4.78242252]
[1729149768872,3.2866,152.17,152.11,3.2877]
[1729149769059,5.22,152.17,152.09,4.78242252]
[1729149769768,3.2871,152.15,152.09,8.07072252]
[1729149770062,6.6629,152.17,152.09,8.07072252]
[1729149770469,3.2874,152.14,152.09,8.07072252]
[1729149773671,3.2874,152.14,152.1,3.2881]
[1729149774268,6.6629,152.17,152.09,4.78242252]
[1729149774269,3.287,152.15,152.09,4.78242252]
[1729149775269,3.287,152.15,152.11,14.23]